bitfinex-derivatives/quotes_BTCF0:USTF0_20250910
["timestamp","ask_amount","ask_price","bid_price","bid_amount"]
[1757512013033,0.03380373,114230.0,114220.0,1.48668]
[1757512013239,0.02060373,114230.0,114220.0,1.64854164]
[1757512013734,0.03380373,114230.0,114220.0,1.64470164]
[1757512013930,0.02060373,114230.0,114220.0,1.64470164]
[1757512014134,0.02060373,114230.0,114220.0,1.98223554]
[1757512014440,0.02060373,114230.0,114220.0,0.52266164]
[1757512014631,0.30659373,114230.0,114220.0,0.3608]
[1757512015241,0.30659373,114230.0,114220.0,0.52266164]
[1757512015740,0.30659373,114230.0,114220.0,0.3608]
[1757512015937,0.30659373,114230.0,114220.0,0.52266164]
[1757512016147,0.30659373,114230.0,114220.0,0.3608]
[1757512016654,0.46845537,114230.0,114220.0,0.3608]
[1757512016835,0.46845537,114230.0,114210.0,0.3608]
[1757512017142,0.46845537,114230.0,114210.0,0.52266164]
[1757512017143,0.03599,114220.0,114210.0,0.52266164]
[1757512017343,0.05517373,114220.0,114210.0,0.3608]
[1757512017534,0.05517373,114220.0,114210.0,0.52266164]
[1757512017737,0.03238373,114220.0,114210.0,0.52266164]
[1757512018844,0.30517373,114220.0,114210.0,0.3608]
[1757512019938,0.05517373,114220.0,114210.0,0.3618]
[1757512020442,0.05617373,114220.0,114210.0,0.52266164]
[1757512020642,0.03338373,114220.0,114210.0,0.52266164]
[1757512020836,0.02018373,114220.0,114210.0,0.52266164]
[1757512021037,0.02018373,114220.0,114210.0,0.92993429]
[1757512021641,0.02018373,114220.0,114210.0,0.59239289]
[1757512021838,0.03338373,114220.0,114210.0,1.53961125]
[1757512022042,0.03338373,114220.0,114210.0,1.70147289]
[1757512022439,0.02018373,114220.0,114210.0,1.87715265]
[1757512022741,0.02018373,114220.0,114210.0,2.03901429]
[1757512022942,0.02018373,114220.0,114210.0,1.95147289]
[1757512023141,0.02018373,114220.0,114210.0,1.53961125]
[1757512023343,0.02018373,114220.0,114210.0,1.95147289]
[1757512023545,0.02018373,114220.0,114210.0,1.95247289]
[1757512023748,0.03238373,114220.0,114210.0,1.95247289]
[1757512023945,0.01918373,114220.0,114210.0,1.95247289]
[1757512024152,0.01918373,114220.0,114210.0,1.94975289]
[1757512024345,0.01918373,114220.0,114210.0,1.94919289]
[1757512024645,0.01918373,114220.0,114210.0,0.84339289]
[1757512024849,0.03238373,114220.0,114210.0,1.69791289]
[1757512025239,0.03238373,114220.0,114210.0,1.53605125]
[1757512025445,0.03238373,114220.0,114210.0,1.62814164]
[1757512025951,0.03238373,114220.0,114210.0,1.46628]
[1757512026152,0.03238373,114220.0,114210.0,1.62814164]
[1757512026748,0.01918373,114220.0,114210.0,1.62814164]
[1757512027048,0.03238373,114220.0,114210.0,1.62814164]
[1757512027445,0.03238373,114220.0,114210.0,1.46628]
[1757512028046,0.30517373,114220.0,114210.0,0.3618]
[1757512028250,0.46703537,114220.0,114210.0,0.3618]
[1757512028546,0.30517373,114220.0,114210.0,0.3618]
[1757512028752,0.03238373,114220.0,114210.0,0.52366164]
[1757512029046,0.05519373,114220.0,114210.0,0.52366164]
[1757512029245,0.05519373,114220.0,114210.0,0.3618]
[1757512029442,0.30519373,114220.0,114210.0,0.3618]
[1757512029749,0.03284373,114220.0,114210.0,0.3618]
[1757512029951,0.03284373,114220.0,114210.0,0.52366164]
[1757512030251,0.03384373,114220.0,114210.0,0.3608]
[1757512030447,0.02018373,114220.0,114210.0,0.52266164]
[1757512030650,0.02018373,114220.0,114210.0,1.71400304]
[1757512030846,0.02018373,114220.0,114210.0,1.96400304]
[1757512031051,0.02018373,114220.0,114210.0,1.7146]
[1757512031246,0.03384373,114220.0,114210.0,1.44738538]
[1757512031442,0.03384373,114220.0,114210.0,1.44838538]
[1757512031648,0.02018373,114220.0,114210.0,1.61024702]
[1757512031849,0.02018373,114220.0,114210.0,1.44838538]
[1757512032046,0.02018373,114220.0,114210.0,1.61024702]
[1757512032255,0.02018373,114220.0,114210.0,1.69778842]
[1757512032549,0.01918373,114220.0,114210.0,1.69778842]
[1757512032751,0.01918373,114220.0,114210.0,1.61024702]
[1757512033256,0.01918373,114220.0,114210.0,1.44838538]
[1757512033447,0.03284373,114220.0,114210.0,1.61024702]
[1757512033648,0.01918373,114220.0,114210.0,1.61024702]
[1757512033843,0.01918373,114220.0,114210.0,1.44838538]
[1757512034048,0.01918373,114220.0,114210.0,1.94778842]
[1757512034250,0.01918373,114220.0,114210.0,1.78592678]
[1757512034556,0.01918373,114220.0,114210.0,1.94778842]
[1757512035543,0.00042,114230.0,114220.0,0.0875337]
[1757512035744,0.00042,114230.0,114220.0,0.61019534]
[1757512036255,0.01408,114230.0,114220.0,0.3608]
[1757512036453,0.00042,114230.0,114220.0,0.52266164]
[1757512036952,0.00142,114230.0,114220.0,0.61019534]
[1757512037157,0.01508,114230.0,114220.0,0.61019534]
[1757512037458,0.01508,114230.0,114220.0,0.52266164]
[1757512037653,0.01508,114230.0,114220.0,0.61019594]
[1757512037958,0.01508,114230.0,114220.0,0.3608]
[1757512038153,0.01508,114230.0,114220.0,0.52266164]
[1757512038759,0.00142,114230.0,114220.0,0.61019604]
[1757512039157,0.00142,114230.0,114220.0,0.52266164]
[1757512039952,0.00142,114230.0,114220.0,0.4483345]
[1757512040162,0.00142,114230.0,114220.0,0.61019614]
[1757512040755,0.00142,114230.0,114220.0,1.46352]
[1757512040756,0.01508,114230.0,114220.0,1.46352]
[1757512041059,0.01508,114230.0,114220.0,1.5510545]
[1757512041261,0.01508,114230.0,114220.0,1.62538164]
[1757512041462,0.01508,114230.0,114220.0,1.71291614]
[1757512041664,0.00142,114230.0,114220.0,1.71291614]
[1757512044266,0.01508,114230.0,114220.0,1.45912]
[1757512044466,0.01508,114230.0,114220.0,1.62098164]
[1757512044667,0.00142,114230.0,114220.0,1.70851614]
[1757512044864,0.01508,114230.0,114220.0,0.52266164]
[1757512045061,0.01508,114230.0,114220.0,1.61830164]
[1757512045462,0.01508,114230.0,114220.0,1.45644]
[1757512046172,0.28789,114230.0,114220.0,0.3608]
[1757512046366,0.28789,114230.0,114210.0,0.34358538]
[1757512046367,0.44975164,114230.0,114210.0,0.34358538]
[1757512046663,0.03647,114220.0,114210.0,1.43786538]
[1757512046866,0.01508,114230.0,114210.0,2.28726732]
[1757512047068,0.01508,114230.0,114220.0,0.3608]
[1757512047264,0.01508,114230.0,114220.0,1.16019614]
[1757512047459,0.03430159,114230.0,114220.0,1.16019614]
[1757512048169,0.02064159,114230.0,114220.0,1.16019614]
[1757512048470,0.00142,114230.0,114220.0,1.16019614]
[1757512048769,0.01508,114230.0,114220.0,0.9884403]
[1757512048959,0.01508,114230.0,114220.0,1.07266164]
[1757512049160,0.01508,114230.0,114220.0,1.13472902]
[1757512049360,0.01508,114230.0,114220.0,2.22532902]
[1757512049557,0.01408,114230.0,114220.0,2.31286352]
[1757512049760,0.01508,114230.0,114220.0,2.25079614]
[1757512050170,0.00142,114230.0,114220.0,2.31280128]
[1757512051764,0.00142,114230.0,114220.0,2.56280128]
[1757512052160,0.00142,114230.0,114220.0,2.50079614]
[1757512052366,0.01147,114240.0,114230.0,0.0875269]
[1757512052566,0.02513,114240.0,114230.0,1.18211114]
[1757512052762,0.02513,114240.0,114230.0,1.09458424]
[1757512052969,0.01366,114240.0,114230.0,2.17910424]
[1757512053164,0.01366,114240.0,114230.0,2.20470854]
[1757512053467,0.01466,114240.0,114230.0,2.11714164]
[1757512053767,0.01466,114240.0,114230.0,2.20466854]
[1757512054072,0.01466,114240.0,114230.0,2.11662164]
[1757512054373,0.01466,114240.0,114230.0,2.00047884]
[1757512054567,0.01466,114240.0,114230.0,2.16234048]
[1757512055066,0.01566,114240.0,114230.0,2.24986718]
[1757512055872,0.01566,114240.0,114230.0,2.49986718]
[1757512056275,0.01566,114240.0,114230.0,2.41230452]
[1757512056460,0.01566,114240.0,114230.0,1.1751722]
[1757512056661,0.01566,114240.0,114230.0,2.2555322]
[1757512057068,0.01566,114240.0,114230.0,2.00550386]
[1757512057269,0.01566,114240.0,114230.0,1.1751722]
[1757512057469,0.01566,114240.0,114230.0,2.09303056]
[1757512057773,0.01566,114240.0,114230.0,2.2548922]
[1757512058774,0.28847,114240.0,114230.0,0.91716288]
[1757512058975,0.28847,114240.0,114230.0,2.15550452]
[1757512059167,0.28847,114240.0,114230.0,2.10914164]
[1757512059368,0.03847,114240.0,114230.0,0.8708]
[1757512059568,0.03847,114240.0,114230.0,2.16406848]
[1757512059768,0.01566,114240.0,114230.0,2.25159488]
[1757512061180,0.01566,114240.0,114230.0,2.50159488]
[1757512062185,0.01566,114240.0,114230.0,2.49603488]
[1757512062382,0.01566,114240.0,114230.0,2.33417324]
[1757512062686,0.01566,114240.0,114230.0,2.24603488]
[1757512063478,0.01566,114240.0,114230.0,2.3143115]
[1757512064984,0.01566,114240.0,114230.0,2.4143115]
[1757512065388,0.09119,114260.0,114250.0,0.0875115]
[1757512065580,0.09119,114260.0,114250.0,2.30217314]
[1757512065781,0.09119,114260.0,114250.0,2.16056085]
[1757512066092,0.09119,114260.0,114250.0,1.00104935]
[1757512066284,0.09119,114260.0,114250.0,2.07368935]
[1757512066479,0.09119,114260.0,114250.0,2.32306249]
[1757512066786,0.09219,114260.0,114250.0,2.16120085]
[1757512067278,0.09219,114260.0,114250.0,1.16291099]
[1757512067482,0.09219,114260.0,114250.0,2.23523099]
[1757512067785,0.34219,114260.0,114250.0,1.16291099]
[1757512067984,0.34219,114260.0,114250.0,2.07352935]
[1757512068380,0.36534,114260.0,114250.0,0.9808]
[1757512068580,0.36534,114260.0,114250.0,2.05284]
[1757512068787,0.36434,114260.0,114250.0,2.21470164]
[1757512069384,0.36434,114260.0,114250.0,2.05284]
[1757512069591,0.36434,114260.0,114250.0,2.21470164]
[1757512069791,0.36434,114260.0,114250.0,2.05284]
[1757512070288,0.36434,114260.0,114250.0,2.21470164]
[1757512070979,0.36434,114260.0,114250.0,2.05284]
[1757512071186,0.36434,114260.0,114250.0,2.21470164]
[1757512071586,0.34119,114260.0,114250.0,2.21470164]
[1757512071982,0.09119,114260.0,114250.0,2.30221314]
[1757512072383,0.09119,114260.0,114250.0,1.14367318]
[1757512072589,0.09119,114260.0,114250.0,2.30202298]
[1757512074086,0.11434,114260.0,114250.0,0.9808]
[1757512074295,0.11434,114260.0,114250.0,2.29898628]
[1757512074589,0.09119,114260.0,114250.0,2.0486]
[1757512074788,0.09119,114260.0,114250.0,2.21131318]
[1757512075191,0.09119,114260.0,114250.0,2.29882628]
[1757512076186,0.09119,114260.0,114250.0,2.1359531]
[1757512076397,0.09119,114260.0,114250.0,2.21131318]
[1757512076600,0.09119,114260.0,114250.0,1.14367318]
[1757512076799,0.09119,114260.0,114250.0,2.20763318]
[1757512077002,0.09119,114260.0,114250.0,2.29514648]
[1757512077198,0.09119,114260.0,114250.0,1.19003606]
[1757512077394,0.36434,114260.0,114250.0,2.04352]
[1757512077698,0.36434,114260.0,114250.0,2.20639318]
[1757512078100,0.52721318,114260.0,114250.0,0.9808]
[1757512078294,0.52721318,114260.0,114250.0,1.02716288]
[1757512078494,0.52721318,114260.0,114250.0,0.71716288]
[1757512078696,0.36434,114260.0,114250.0,0.71716288]
[1757512078999,0.52721318,114260.0,114250.0,0.71716288]
[1757512079196,0.54652062,114260.0,114250.0,0.71716288]
[1757512079398,0.38364744,114260.0,114250.0,0.71716288]
[1757512079794,0.38364744,114260.0,114250.0,0.6708]
[1757512079994,0.11434,114260.0,114250.0,0.71716288]
[1757512080595,0.11434,114260.0,114250.0,0.88003606]
[1757512080794,0.11434,114260.0,114250.0,0.71716288]
[1757512080992,0.11434,114260.0,114250.0,0.88003606]
[1757512081894,0.09119,114260.0,114250.0,1.08367318]
[1757512082288,0.09119,114260.0,114250.0,1.17118838]
[1757512082897,0.07753,114260.0,114250.0,1.0083152]
[1757512083094,0.07753,114260.0,114250.0,1.33406156]
[1757512083290,0.02118,114260.0,114250.0,1.23311098]
[1757512083588,0.01365,114260.0,114250.0,1.17118838]
[1757512083789,0.01365,114260.0,114250.0,1.39598416]
[1757512084391,0.01365,114260.0,114250.0,1.0083152]
[1757512084592,0.01365,114260.0,114250.0,1.33406156]
[1757512085191,0.01365,114260.0,114250.0,1.0083152]
[1757512085392,0.01365,114260.0,114250.0,1.33406156]
[1757512085599,0.01365,114260.0,114250.0,1.0083152]
[1757512085900,0.01365,114260.0,114250.0,1.17118838]
[1757512086090,0.01365,114260.0,114250.0,2.22558838]
[1757512086696,0.01365,114260.0,114250.0,2.38846156]
[1757512087099,0.01365,114260.0,114250.0,2.46610186]
[1757512087401,0.01365,114260.0,114250.0,2.38846156]
[1757512087788,0.01365,114260.0,114250.0,2.46610186]
[1757512088300,0.01365,114260.0,114250.0,2.46398186]
[1757512089788,0.06408,114270.0,114260.0,0.4346575]
[1757512089993,0.06408,114270.0,114260.0,1.12753068]
[1757512090190,0.06408,114270.0,114260.0,1.02669796]
[1757512090392,0.06408,114270.0,114260.0,1.29040386]
[1757512090592,0.06408,114270.0,114260.0,1.3106973]
[1757512090794,0.06408,114270.0,114260.0,1.37272921]
[1757512090999,0.06408,114270.0,114260.0,1.37272919]
[1757512091797,0.06408,114270.0,114260.0,0.98495094]
[1757512091997,0.06408,114270.0,114260.0,1.3106973]
[1757512092598,0.06408,114270.0,114260.0,1.5606973]
[1757512093397,0.06408,114270.0,114260.0,1.62272919]
[1757512093599,0.06408,114270.0,114260.0,1.89182919]
[1757512094901,0.06408,114270.0,114260.0,1.80432169]
[1757512095203,0.31208,114270.0,114260.0,1.12234851]
[1757512095404,0.31208,114270.0,114260.0,2.17002851]
[1757512095798,0.31208,114270.0,114260.0,2.33290169]
[1757512096201,0.31208,114270.0,114260.0,1.12234851]
[1757512096403,0.31208,114270.0,114260.0,2.10807662]
[1757512096798,0.06208,114270.0,114260.0,2.3578572]
[1757512096995,0.06208,114270.0,114260.0,2.41988909]
[1757512097399,0.06208,114270.0,114260.0,0.95947533]
[1757512097596,0.33541,114270.0,114260.0,1.12234851]
[1757512097803,0.33541,114270.0,114260.0,2.17018851]
[1757512098001,0.33541,114270.0,114260.0,0.95947533]
[1757512098405,0.33541,114270.0,114260.0,2.10899662]
[1757512098701,0.33541,114270.0,114260.0,2.17102851]
[1757512098902,0.33541,114270.0,114260.0,2.33390169]
[1757512099110,0.06208,114270.0,114260.0,2.42140909]
[1757512100404,0.06208,114270.0,114260.0,2.67140909]
[1757512101200,0.06166,114270.0,114260.0,2.6093772]
[1757512101400,0.02182,114280.0,114270.0,0.0874997]
[1757512101698,0.01412674,114290.0,114280.0,0.4482921]
[1757512101902,0.01328,114300.0,114290.0,0.32574636]
[1757512102098,0.01328,114300.0,114290.0,1.14367318]
[1757512102311,0.01328,114300.0,114290.0,1.71383362]
[1757512102508,0.01328,114300.0,114290.0,1.38808726]
[1757512102808,0.01328,114300.0,114290.0,1.72266923]
[1757512103112,0.26328,114300.0,114290.0,2.60491605]
[1757512103307,0.01328,114300.0,114290.0,2.85527363]
[1757512103505,0.01328,114300.0,114290.0,2.44204287]
[1757512103706,0.01528,114300.0,114290.0,2.45224287]
[1757512103908,0.01528,114300.0,114290.0,2.77798923]
[1757512104310,0.01528,114300.0,114290.0,2.61511605]
[1757512104605,0.26528,114300.0,114290.0,2.45244287]
[1757512104809,0.26528,114300.0,114290.0,2.60624044]
[1757512104999,0.26728,114300.0,114290.0,1.55096044]
[1757512105204,0.26728,114300.0,114290.0,2.60640044]
[1757512105907,0.26728,114300.0,114290.0,2.60596044]
[1757512106108,0.26728,114300.0,114290.0,1.55967688]
[1757512106312,0.26728,114300.0,114290.0,2.61483688]
[1757512106610,0.26728,114300.0,114290.0,1.55096044]
[1757512106907,0.26728,114300.0,114290.0,1.38808726]
[1757512107106,0.29061,114300.0,114290.0,1.77564]
[1757512107307,0.04061,114300.0,114290.0,1.98500044]
[1757512107514,0.29061,114300.0,114290.0,1.93851318]
[1757512107710,0.29061,114300.0,114290.0,0.88447318]
[1757512108112,0.04061,114300.0,114290.0,1.98364044]
[1757512108818,0.04061,114300.0,114290.0,1.98420044]
[1757512109211,0.04061,114300.0,114290.0,1.82132726]
[1757512109515,0.04061,114300.0,114290.0,2.58420044]
[1757512109713,0.01728,114300.0,114290.0,2.58420044]
[1757512110511,0.01728,114300.0,114290.0,2.42132726]
[1757512110715,0.01728,114300.0,114290.0,2.58420044]
[1757512111114,0.01728,114300.0,114290.0,2.42132726]
[1757512111414,0.01728,114300.0,114290.0,2.53771318]
[1757512111815,0.01728,114300.0,114290.0,2.62519778]
[1757512112017,0.01728,114300.0,114290.0,2.70058636]
[1757512112208,0.01728,114300.0,114290.0,2.76258505]
[1757512112409,0.01728,114300.0,114290.0,2.70058636]
[1757512112620,0.01728,114300.0,114290.0,2.53279318]
[1757512112922,0.01728,114300.0,114290.0,2.36992]
[1757512113116,0.01728,114300.0,114290.0,2.53279318]
[1757512114218,0.01728,114300.0,114290.0,2.36992]
[1757512114517,0.01528,114300.0,114290.0,2.53379318]
[1757512114918,0.01328,114300.0,114290.0,2.53379318]
[1757512115113,0.01328,114300.0,114290.0,1.48747318]
[1757512115325,0.01328,114300.0,114290.0,2.52188319]
[1757512115512,0.01328,114300.0,114290.0,1.80028319]
[1757512115816,0.01328,114300.0,114290.0,2.61975768]
[1757512116019,0.01328,114300.0,114290.0,2.4643203]
[1757512116224,0.01328,114300.0,114290.0,2.38668]
[1757512116423,0.01328,114300.0,114290.0,2.62719348]
[1757512117126,0.01328,114300.0,114290.0,2.71467798]
[1757512117324,0.01328,114300.0,114290.0,2.4643203]
[1757512117525,0.01328,114300.0,114290.0,2.62719348]
[1757512117723,0.01328,114300.0,114290.0,2.71467798]
[1757512117922,0.01328,114300.0,114290.0,2.87755116]
[1757512118223,0.01328,114300.0,114290.0,2.4741645]
[1757512118429,0.01328,114300.0,114290.0,2.82137936]
[1757512118726,0.01328,114300.0,114290.0,2.82233936]
[1757512119322,0.01328,114300.0,114290.0,1.3276]
[1757512119724,0.2862,114300.0,114290.0,2.02438895]
[1757512120126,0.2862,114300.0,114290.0,1.85022152]
[1757512120423,0.2862,114300.0,114290.0,2.0130301]
[1757512120929,0.2862,114300.0,114290.0,0.9525101]
[1757512121125,0.44900858,114300.0,114290.0,0.78970152]
[1757512121330,0.2862,114300.0,114290.0,0.7276]
[1757512121825,0.0362,114300.0,114290.0,2.11361716]
[1757512122128,0.0362,114300.0,114290.0,1.788]
[1757512122326,0.0362,114300.0,114290.0,1.94880858]
[1757512122621,0.0362,114300.0,114290.0,2.01093037]
[1757512122821,0.0362,114300.0,114290.0,0.95053037]
[1757512123020,0.0362,114300.0,114290.0,1.11333895]
[1757512123223,0.01328,114300.0,114290.0,2.00581037]
[1757512123523,0.01328,114300.0,114290.0,1.79088]
[1757512123724,0.01328,114300.0,114290.0,2.01580121]
[1757512124121,0.01328,114300.0,114290.0,0.79371263]
[1757512124429,0.01328,114300.0,114290.0,2.01316121]
[1757512124430,0.0362,114300.0,114290.0,2.01316121]
[1757512124624,0.0362,114300.0,114290.0,1.85035263]
[1757512125024,0.0362,114300.0,114290.0,2.01416121]
[1757512125532,0.01328,114300.0,114290.0,2.01416121]
[1757512125923,0.01328,114300.0,114290.0,0.7326]
[1757512126123,0.2862,114300.0,114290.0,0.79343263]
[1757512126429,0.2862,114300.0,114290.0,0.73132]
[1757512126623,0.2862,114300.0,114290.0,0.89412858]
[1757512126828,0.0362,114300.0,114290.0,0.79343263]
[1757512127031,0.2862,114300.0,114290.0,0.95624121]
[1757512127225,0.2862,114300.0,114290.0,1.84723263]
[1757512127425,0.2862,114300.0,114290.0,0.79343263]
[1757512127626,0.2862,114300.0,114290.0,0.89412858]
[1757512127931,0.2862,114300.0,114290.0,0.73032]
[1757512128232,0.2862,114300.0,114290.0,0.79243263]
[1757512128424,0.0362,114300.0,114290.0,0.95524121]
[1757512128626,0.0362,114300.0,114290.0,0.79243263]
[1757512128927,0.2862,114300.0,114290.0,0.95524121]
[1757512129231,0.2862,114300.0,114290.0,0.79243263]
[1757512129531,0.0362,114300.0,114290.0,0.95624121]
[1757512130027,0.0362,114300.0,114290.0,0.79343263]
[1757512130228,0.2862,114300.0,114290.0,0.79343263]
[1757512130529,0.2862,114300.0,114290.0,0.95624121]
[1757512130933,0.2862,114300.0,114290.0,0.79343263]
[1757512131230,0.0362,114300.0,114290.0,0.79343263]
[1757512131422,0.0362,114300.0,114290.0,0.95624121]
[1757512131621,0.0362,114300.0,114290.0,0.79343263]
[1757512131831,0.0362,114300.0,114290.0,0.79243263]
[1757512132017,0.0362,114300.0,114290.0,0.95524121]
[1757512132423,0.0362,114300.0,114290.0,0.95412765]
[1757512132626,0.0362,114300.0,114290.0,0.79243263]
[1757512133425,0.0362,114300.0,114290.0,0.95412765]
[1757512134133,0.2862,114300.0,114290.0,0.79243263]
[1757512134432,0.2862,114300.0,114290.0,0.73132]
[1757512135126,0.2412,114300.0,114290.0,0.73132]
[1757512135432,0.27806,114300.0,114290.0,0.73132]
[1757512137724,0.27806,114300.0,114290.0,0.73032]
[1757512138839,0.27806,114300.0,114290.0,0.36952]
[1757512139136,0.43975502,114300.0,114290.0,0.36952]
[1757512139333,0.03686,114290.0,114280.0,0.42291263]
[1757512139529,0.44855502,114290.0,114280.0,0.42291263]
[1757512139736,0.28686,114290.0,114280.0,0.06211263]
[1757512140536,0.03686,114280.0,114270.0,0.42291263]
[1757512140735,0.03686,114280.0,114270.0,0.43171263]
[1757512141229,0.03686,114280.0,114270.0,0.65755005]
[1757512141530,0.01394,114290.0,114270.0,0.96126734]
[1757512141735,0.03686,114290.0,114280.0,0.54175625]
[1757512141931,0.01394,114290.0,114280.0,0.54175625]
[1757512142130,0.03686,114290.0,114280.0,0.77341609]
[1757512142333,0.03686,114290.0,114280.0,0.71125974]
[1757512142636,0.03686,114290.0,114280.0,0.96125974]
[1757512142836,0.03686,114290.0,114280.0,0.84542982]
[1757512143032,0.01394,114290.0,114280.0,0.96225974]
[1757512143232,0.01394,114290.0,114280.0,0.8082402]
[1757512143438,0.03686,114290.0,114280.0,1.03990004]
[1757512143637,0.01394,114300.0,114280.0,1.03990004]
[1757512143837,0.13012952,114310.0,114300.0,0.02251]
[1757512144136,0.13012952,114310.0,114300.0,0.38331]
[1757512144335,0.13012952,114310.0,114300.0,0.39211]
[1757512144538,0.13012952,114310.0,114300.0,0.3696]
[1757512144732,0.13012952,114310.0,114300.0,0.39211]
[1757512144929,0.29184902,114310.0,114300.0,0.3696]
[1757512145137,0.29284902,114310.0,114300.0,0.3696]
[1757512145435,0.13212952,114310.0,114300.0,0.39211]
[1757512148034,0.13112952,114310.0,114300.0,0.39211]
[1757512148429,0.13012952,114310.0,114300.0,0.39211]
[1757512149529,0.29184902,114310.0,114300.0,0.3696]
[1757512149731,0.54184902,114310.0,114300.0,0.3608]
[1757512150435,0.38012952,114310.0,114300.0,0.3608]
[1757512150632,0.38012952,114310.0,114300.0,0.38377]
[1757512150831,0.38012952,114310.0,114300.0,0.4712443]
[1757512151029,0.13012952,114310.0,114300.0,0.39257]
[1757512151632,0.13012952,114310.0,114300.0,0.4800444]
[1757512152035,0.13012952,114310.0,114300.0,0.6417639]
[1757512152231,0.13012952,114310.0,114300.0,0.4800444]
[1757512152430,0.13012952,114310.0,114300.0,0.3696]
[1757512155141,0.13012952,114310.0,114300.0,0.03177]
[1757512155339,0.13012952,114310.0,114300.0,0.0088]
[1757512155942,0.13012952,114310.0,114300.0,0.03177]
[1757512156147,0.11244508,114310.0,114300.0,0.03177]
[1757512156541,0.11244508,114310.0,114300.0,0.119244]
[1757512157045,0.11244508,114310.0,114300.0,0.03177]
[1757512157244,0.11244508,114310.0,114300.0,0.0088]
[1757512157645,0.27416458,114310.0,114300.0,0.0088]
[1757512157846,0.11244508,114310.0,114300.0,0.0088]
[1757512158040,0.27416458,114310.0,114300.0,0.0088]
[1757512158236,0.11244508,114310.0,114300.0,0.0088]
[1757512158443,0.27416458,114310.0,114300.0,0.0088]
[1757512158843,0.47324508,114310.0,114300.0,0.0088]
[1757512159051,0.27416458,114310.0,114300.0,0.0088]
[1757512159743,0.11244508,114310.0,114300.0,0.0088]
[1757512160547,0.27416458,114310.0,114300.0,0.0088]
[1757512160936,0.11244508,114310.0,114300.0,0.0088]
[1757512162142,0.27416458,114310.0,114300.0,0.0088]
[1757512162536,0.11244508,114310.0,114300.0,0.0088]
[1757512162842,0.47324508,114310.0,114300.0,0.0088]
[1757512163041,0.63496458,114310.0,114300.0,0.0088]
[1757512163547,0.27416458,114310.0,114300.0,0.0088]
[1757512164341,0.11244508,114310.0,114300.0,0.0088]
[1757512164742,0.11244508,114310.0,114300.0,0.4570734]
[1757512164951,0.11244508,114310.0,114300.0,0.39257]
[1757512165249,0.11244508,114310.0,114300.0,0.5542895]
[1757512165445,0.11244508,114310.0,114300.0,0.39257]
[1757512166440,0.22822599,114310.0,114300.0,0.39257]
[1757512166648,0.06786508,114310.0,114300.0,1.51152452]
[1757512166843,0.10290508,114310.0,114300.0,0.43377]
[1757512167050,0.10290508,114310.0,114300.0,1.00280452]
[1757512167051,0.06786508,114310.0,114300.0,1.00280452]
[1757512167245,0.06786508,114310.0,114300.0,2.56991576]
[1757512167441,0.06786508,114310.0,114300.0,2.33835394]
[1757512167647,0.06786508,114310.0,114300.0,2.56923576]
[1757512168454,0.06786508,114310.0,114300.0,2.57323576]
[1757512168952,0.06786508,114310.0,114300.0,2.57423576]
[1757512169753,0.06786508,114310.0,114300.0,2.41103471]
[1757512170052,0.06786508,114310.0,114300.0,2.64051653]
[1757512170248,0.06786508,114310.0,114300.0,2.75629744]
[1757512170952,0.06786508,114310.0,114300.0,2.75601744]
[1757512171150,0.06786508,114310.0,114300.0,2.64023653]
[1757512171355,0.06786508,114310.0,114300.0,2.75601744]
[1757512172255,0.00042,114320.0,114310.0,0.0874654]
[1757512172549,0.00042,114320.0,114310.0,1.21619755]
[1757512172756,0.00042,114320.0,114310.0,1.33197846]
[1757512173754,0.00042,114320.0,114310.0,1.0392654]
[1757512173755,0.01401,114320.0,114310.0,1.0392654]
[1757512173942,0.00042,114320.0,114310.0,1.52082722]
[1757512174346,0.00165,114330.0,114320.0,0.20323871]
[1757512174550,0.01546602,114340.0,114330.0,0.0874501]
[1757512174856,0.01546602,114340.0,114330.0,0.67981192]
[1757512175254,0.01546602,114340.0,114330.0,0.59236182]
[1757512175548,0.01546602,114340.0,114330.0,0.92981192]
[1757512175743,0.06401,114350.0,114340.0,0.0874425]
[1757512175945,0.07061901,114350.0,114340.0,1.61815788]
[1757512176147,0.06401,114350.0,114340.0,1.99815788]
[1757512176552,0.06401,114350.0,114340.0,2.2297197]
[1757512176753,0.06401,114350.0,114340.0,2.3751197]
[1757512176953,0.06401,114350.0,114340.0,2.11393879]
[1757512177154,0.06401,114350.0,114340.0,1.09849879]
[1757512177651,0.06401,114350.0,114340.0,2.11317879]
[1757512177848,0.06401,114350.0,114340.0,2.18374014]
[1757512178044,0.06401,114350.0,114340.0,1.16906014]
[1757512178251,0.05042,114350.0,114340.0,2.43374014]
[1757512178559,0.05042,114350.0,114340.0,2.36217215]
[1757512179044,0.05042,114350.0,114340.0,2.36227215]
[1757512179249,0.05042,114350.0,114340.0,2.11227215]
[1757512179445,0.06335,114350.0,114340.0,2.11227215]
[1757512179847,0.06335,114350.0,114340.0,2.02482965]
[1757512180457,0.06335,114350.0,114340.0,1.01166965]
[1757512180652,0.06335,114350.0,114340.0,1.00297518]
[1757512180851,0.06335,114350.0,114340.0,1.44162135]
[1757512181050,0.06335,114350.0,114340.0,1.60313518]
[1757512181257,0.06335,114350.0,114340.0,1.73313518]
[1757512181458,0.08566,114350.0,114340.0,1.73269518]
[1757512181757,0.08566,114350.0,114340.0,1.73165518]
[1757512182050,0.33566,114350.0,114340.0,0.43146135]
[1757512182252,0.33566,114350.0,114340.0,1.43966135]
[1757512182459,0.33566,114350.0,114340.0,2.19117518]
[1757512182460,0.06335,114350.0,114340.0,2.19117518]
[1757512182650,0.06335,114350.0,114340.0,2.52861638]
[1757512183058,0.05042,114350.0,114340.0,2.52861638]
[1757512184361,0.01359,114360.0,114350.0,0.087434]
[1757512184561,0.01359,114360.0,114350.0,1.17984783]
[1757512184759,0.01359,114360.0,114350.0,2.023254]
[1757512184964,0.01359,114360.0,114350.0,2.18408783]
[1757512185561,0.01459,114360.0,114350.0,2.18408783]
[1757512185762,0.01459,114360.0,114350.0,2.18356783]
[1757512186156,0.01459,114360.0,114350.0,2.09577383]
[1757512186362,0.01459,114360.0,114350.0,2.18320813]
[1757512186558,0.01559,114360.0,114350.0,2.18320813]
[1757512187064,0.01459,114360.0,114350.0,2.18328813]
[1757512187356,0.01359,114360.0,114350.0,2.45338354]
[1757512188957,0.01359,114360.0,114350.0,2.46212354]
[1757512189664,0.01359,114360.0,114350.0,1.89212354]
[1757512189962,0.01359,114360.0,114350.0,2.07980924]